{"text_format":"1","workbook":"xlsx","n_sheets":3,"sheets":["Sheet1","Drop down lists","Master"],"not_rendered":{"charts":0,"images":0,"macros":1,"external_links":1,"defined_names":51,"comments":0,"pivot_tables":0},"unopened":[],"bounds":{"document_bytes":16777216,"sheet_cells":100000,"rows_first":2000,"rows_last":500,"rows_between":2000,"halvings":0,"cell_chars":16384,"cell_head_chars":4096},"cells_cut":0,"cells_raw":0,"read":"whole","date_system":"1900"}

{"sheet":"Sheet1","index":0,"n_rows":18,"n_cols":11,"rows_kept":18,"cut":false,"hidden":false,"merged":[[0,0,0,10],[1,0,1,10],[6,2,6,7],[6,8,6,10],[8,0,9,0],[8,1,8,2],[8,3,8,6],[8,7,8,10],[17,0,17,2],[17,3,17,6],[17,7,17,10],[3,0,3,7],[10,4,14,4],[10,7,14,7],[10,8,14,8],[10,9,14,9],[10,10,14,10],[15,0,15,2],[15,7,15,10],[16,0,16,2],[16,7,16,10],[15,3,15,6],[16,3,16,6]]}
["HEALTH CONNECT SUPRA"]
["Benefit Illustration in respect of policies offered on individual and family floater basis"]
["Plan","Super Top up Option I","Deductible",500000,"Sum Insured",1000000,"Policy Tenure","1 year"]
["Otional Covers"]
["Reload of Sum Insured","No","AYUSH Treatment","No","World-Wide Coverage","No","Wellness & Assistance","No"]
["1st Adult Age",40,"2nd Adult Age",38,"1st Child Age",null,"2nd Child Age"]
["3rd Child Age",null,null,null,null,null,null,null,"UIN: LIBHLIP23124V032223"]
[]
["Age of the members insured","Coverage opted on individual basis covering each member of the family separately (at a single point in time)",null,"Coverage opted on individual basis covering multiple members of the family under a single policy (Sum insured is available for each member of the family)",null,null,null,"Coverage opted on family floater basis with overall Sum insured (Only one sum insured is available for the entire family)"]
[null,"Premium (Rs.)","Sum insured (Rs.)","Premium (Rs.)","Discount, (if any)","Premium after discount (Rs.)","Sum insured (Rs.)","Premium or consolidated premium for all members of family (Rs.)","Floater discount, if any","Premium after discount (Rs.)","Sum insured"]
[{"$f":"B6","v":40},{"$f":"Master!BF5","v":1287},{"$f":"IF(B6=\"\",0,$F$3)","v":1000000},{"$f":"Master!BM5","v":1287},{"$f":"IF(AND(COUNT(Master!AT5:AT9)>=2,H3=\"1 year\"),\"Family Discount: 10%\",IF(AND(COUNT(Master!AT5:AT9)>=2,H3=\"2 years\"),\"Family Discount: 10% & Long Term Discount: 7.5%\",IF(AND(COUNT(Master!AT5:AT9)>=2,H3=\"3 years\"),\"Family Discount: 10% & Long Term Discount: 10%\",IF(AND(COUNT(Master!AT5:AT9)=1,H3=\"1 year\"),\"0%\",IF(AND(COUNT(Master!AT5:AT9)=1,H3=\"2 years\"),\"Long Term Discount: 7.5%\",\"Long Term Discount: 10%\")))))","v":"Family Discount: 10%"},{"$f":"Master!BP5","v":1158.3},{"$f":"IF(B6=\"\",0,$F$3)","v":1000000},{"$f":"IF(Master!BE13=\"Available floater combinations - 1A1C, 1A2C, 1A3C, 2A, 2A1C, 2A2C or 2A3C\",\"Available floater combinations - 1A1C, 1A2C, 1A3C, 2A, 2A1C, 2A2C or 2A3C\",\"Base Plan Rs.\"&\" \"&ROUND(Master!BS5,0)&\"                                                                \"&\"Optional Cover Rs.\"&Master!BA12)","v":"Base Plan Rs. 2574                                                                Optional Cover Rs.0"},{"$f":"IF(Master!BE13=\"Available floater combinations - 1A1C, 1A2C, 1A3C, 2A, 2A1C, 2A2C or 2A3C\",0%,Master!BH20)","v":0.2},{"$f":"IF(Master!BE13=\"Available floater combinations - 1A1C, 1A2C, 1A3C, 2A, 2A1C, 2A2C or 2A3C\",0,Master!BU5)","v":2059},{"$f":"IF(Master!BE13=\"Available floater combinations - 1A1C, 1A2C, 1A3C, 2A, 2A1C, 2A2C or 2A3C\",0,F3)","v":1000000}]
[{"$f":"D6","v":38},{"$f":"Master!BF6","v":1287},{"$f":"IF(D6=\"\",0,$F$3)","v":1000000},{"$f":"Master!BM6","v":1287},null,{"$f":"Master!BP6","v":1158.3},{"$f":"IF(D6=\"\",0,$F$3)","v":1000000}]
[{"$f":"F6","v":0},{"$f":"Master!BF7","v":0},{"$f":"IF(F6=\"\",0,$F$3)","v":0},{"$f":"Master!BF7","v":0},null,{"$f":"Master!BP7","v":0},{"$f":"IF(F6=\"\",0,$F$3)","v":0}]
[{"$f":"H6","v":0},{"$f":"Master!BF8","v":0},{"$f":"IF(H6=\"\",0,$F$3)","v":0},{"$f":"Master!BF8","v":0},null,{"$f":"Master!BP8","v":0},{"$f":"IF(H6=\"\",0,$F$3)","v":0}]
[{"$f":"B7","v":0},{"$f":"Master!BF9","v":0},{"$f":"IF(B7=\"\",0,$F$3)","v":0},{"$f":"Master!BF9","v":0},null,{"$f":"Master!BP9","v":0},{"$f":"IF(B7=\"\",0,$F$3)","v":0}]
[{"$f":"Master!BR10","v":"Total Premium for all members of the family is, Rs. 2574 (excluding GST & Stamp Duty) when each member is covered separately."},null,null,{"$f":"Master!BS10","v":"Total Premium for all members of the family is, Rs. 2317 (excluding GST & Stamp Duty)  when they are covered under a single policy"},null,null,null,{"$f":"Master!BT10","v":"Total Premium when policy is opted on floater basis is, Rs. 2059 (excluding GST & Stamp Duty)"}]
[{"$f":"IF(AND(H3=\"3 years\",H5=\"No\"),\"*Total premium shown above includes long term discount\",IF(AND(H3=\"2 years\",H5=\"No\"),\"*Total premium shown above includes long term discount\",IF(AND(H3=\"3 years\",H5=\"Yes\"),\"*Total premium shown above includes long term discount & Wellness & Assistance services premium\",IF(AND(H3=\"2 years\",H5=\"Yes\"),\"*Total premium shown above includes long term discount & Wellness & Assistance services premium\",IF(AND(H3=\"1 year\",H5=\"Yes\"),\"*Total premium shown above includes Wellness & Assistance services premium\",\"\")))))","v":""},null,null,{"$f":"IF(H5=\"Yes\",\"*Total premium shown above includes Wellness & Assistance services premium\",\"\")","v":""},null,null,null,{"$f":"IF(Master!BE13=\"Available floater combinations - 1A1C, 1A2C, 1A3C, 2A, 2A1C, 2A2C or 2A3C\",\"\",IF(Sheet1!H3=\"1 year\",\"*Floater discount applies only to Base Plan premium\",\"*Floater discount applies only to Base Plan premium & consolidated premium shown above includes long term discount\"))","v":"*Floater discount applies only to Base Plan premium"}]
[{"$f":"Master!BR11","v":"Sum insured available for each individual is Rs. 1000000 with deductible of Rs. 500000 under Health Connect Supra policy"},null,null,{"$f":"Master!BS11","v":"Sum insured available for each family member is Rs. 1000000 with deductible of Rs. 500000 under Health Connect Supra policy"},null,null,null,{"$f":"Master!BT11","v":"Sum insured of Rs. 1000000 with deductible of Rs. 500000 is available for the entire family."}]

{"sheet":"Drop down lists","index":1,"n_rows":67,"n_cols":21,"rows_kept":67,"cut":false,"hidden":true,"merged":[[0,2,0,4],[0,6,0,7],[9,0,9,2]]}
["Top up","Super Top up","Deductible_Top up",null,null,null,"Deductible Super Top up",null,null,"Sum Insured Top up I","Sum Insured Top up II","Sum Insured Top up III",null,"Sum Insured Super Top up I","Sum Insured Super Top up II",null,"Age",null,null,"Plan Option","Policy Tenure"]
["I","I",50000,200000,500000,null,200000,1000000,null,50000,300000,1000000,null,300000,1000000,null,"3-11 Months",null,null,"Top up Option I","1 year"]
["II","II",null,300000,750000,null,300000,1500000,null,100000,500000,1500000,null,500000,1500000,null,1,null,null,"Top up Option II","2 years"]
["III",null,null,400000,1000000,null,400000,2000000,null,150000,700000,2000000,null,700000,2000000,null,2,null,null,"Top up Option III","3 years"]
[null,null,null,500000,null,null,500000,3000000,null,200000,null,null,null,1000000,3000000,null,3,null,null,"Super Top up Option I"]
[null,null,null,null,null,null,750000,4000000,null,null,null,null,null,1500000,5000000,null,4,null,null,"Super Top up Option II"]
["Yes",null,null,50000,50000,null,1000000,null,null,null,null,null,null,2000000,10000000,null,5]
["No",null,"op 1",null,100000,null,null,null,null,null,null,null,null,null,null,null,6]
[null,null,null,null,150000,null,200000,300000,null,1000000,1000000,null,null,null,null,null,7]
[null,null,null,null,200000,null,null,500000,null,null,1500000,null,null,"NA",0,null,8]
[null,null,null,null,null,null,null,700000,null,null,2000000,null,null,null,1,null,9]
[null,null,null,200000,300000,null,null,1000000,null,null,3000000,null,null,"Yes",2,null,10]
[null,null,null,null,500000,null,null,1500000,null,null,5000000,null,null,"No",3,null,11]
[null,null,null,null,700000,null,null,2000000,null,null,10000000,null,null,null,4,null,12]
[null,null,null,null,null,null,300000,300000,null,1500000,1000000,null,null,null,5,null,13]
[null,null,null,null,null,null,null,500000,null,null,1500000,null,null,null,null,null,14]
[null,null,null,300000,300000,null,null,700000,null,null,2000000,null,null,null,null,null,15]
[null,null,"Op 2",null,500000,null,null,1000000,null,null,3000000,"Op 2",null,null,null,null,16]
[null,null,null,null,700000,null,null,1500000,null,null,5000000,null,null,null,null,null,17]
[null,null,null,null,null,null,null,2000000,null,null,10000000,null,null,null,null,null,18]
[null,null,null,null,null,null,400000,300000,null,2000000,1000000,null,null,null,null,null,19]
[null,null,null,400000,300000,null,null,500000,null,null,1500000,null,null,null,null,null,20]
[null,null,null,null,500000,null,null,700000,"Op 1",null,2000000,null,null,null,null,null,21]
[null,null,null,null,700000,null,null,1000000,null,null,3000000,null,null,null,null,null,22]
[null,null,null,null,null,null,null,1500000,null,null,5000000,null,null,null,null,null,23]
[null,null,null,null,null,null,null,2000000,null,null,10000000,null,null,null,null,null,24]
[null,null,null,500000,300000,null,500000,300000,null,3000000,1000000,null,null,null,null,null,25]
[null,null,null,null,500000,null,null,500000,null,null,1500000,null,null,null,null,null,26]
[null,null,null,null,700000,null,null,700000,null,null,2000000,null,null,null,null,null,27]
[null,null,null,null,null,null,null,1000000,null,null,3000000,null,null,null,null,null,28]
[null,null,null,null,null,null,null,1500000,null,null,5000000,null,null,null,null,null,29]
[null,null,null,500000,1000000,null,null,2000000,null,null,10000000,null,null,null,null,null,30]
[null,null,null,null,1500000,null,750000,300000,null,4000000,1000000,null,null,null,null,null,31]
[null,null,null,null,2000000,null,null,500000,null,null,1500000,null,null,null,null,null,32]
[null,null,null,null,null,null,null,700000,null,null,2000000,null,null,null,null,null,33]
[null,null,"op 3",750000,1000000,null,null,1000000,null,null,3000000,null,null,null,null,null,34]
[null,null,null,null,1500000,null,null,1500000,null,null,5000000,null,null,null,null,null,35]
[null,null,null,null,2000000,null,null,2000000,null,null,10000000,null,null,null,null,null,36]
[null,null,null,null,null,null,1000000,300000,null,null,null,null,null,null,null,null,37]
[null,null,null,1000000,1000000,null,null,500000,null,null,null,null,null,null,null,null,38]
[null,null,null,null,1500000,null,null,700000,null,null,null,null,null,null,null,null,39]
[null,null,null,null,2000000,null,null,1000000,null,null,null,null,null,null,null,null,40]
[null,null,null,null,null,null,null,1500000,null,null,null,null,null,null,null,null,41]
[null,null,null,null,null,null,null,2000000,null,null,null,null,null,null,null,null,42]
[null,null,null,null,null,null,null,null,null,null,null,null,null,null,null,null,43]
[null,null,null,null,null,null,null,null,null,null,null,null,null,null,null,null,44]
[null,null,null,null,null,null,null,null,null,null,null,null,null,null,null,null,45]
[null,null,null,null,null,null,null,null,null,null,null,null,null,null,null,null,46]
[null,null,null,null,null,null,null,null,null,null,null,null,null,null,null,null,47]
[null,null,null,null,null,null,null,null,null,null,null,null,null,null,null,null,48]
[null,null,null,null,null,null,null,null,null,null,null,null,null,null,null,null,49]
[null,null,null,null,null,null,null,null,null,null,null,null,null,null,null,null,50]
[null,null,null,null,null,null,null,null,null,null,null,null,null,null,null,null,51]
[null,null,null,null,null,null,null,null,null,null,null,null,null,null,null,null,52]
[null,null,null,null,null,null,null,null,null,null,null,null,null,null,null,null,53]
[null,null,null,null,null,null,null,null,null,null,null,null,null,null,null,null,54]
[null,null,null,null,null,null,null,null,null,null,null,null,null,null,null,null,55]
[null,null,null,null,null,null,null,null,null,null,null,null,null,null,null,null,56]
[null,null,null,null,null,null,null,null,null,null,null,null,null,null,null,null,57]
[null,null,null,null,null,null,null,null,null,null,null,null,null,null,null,null,58]
[null,null,null,null,null,null,null,null,null,null,null,null,null,null,null,null,59]
[null,null,null,null,null,null,null,null,null,null,null,null,null,null,null,null,60]
[null,null,null,null,null,null,null,null,null,null,null,null,null,null,null,null,61]
[null,null,null,null,null,null,null,null,null,null,null,null,null,null,null,null,62]
[null,null,null,null,null,null,null,null,null,null,null,null,null,null,null,null,63]
[null,null,null,null,null,null,null,null,null,null,null,null,null,null,null,null,64]
[null,null,null,null,null,null,null,null,null,null,null,null,null,null,null,null,65]

{"sheet":"Master","index":2,"n_rows":134,"n_cols":73,"rows_kept":134,"cut":false,"hidden":true,"merged":[[4,65,8,65],[4,66,8,66],[37,60,37,72],[37,31,37,36],[46,0,46,1],[37,1,37,6],[37,7,37,12],[37,13,37,18],[37,19,37,24],[37,25,37,30],[26,1,26,3],[26,4,26,6],[26,7,26,9],[48,1,48,6],[48,7,48,12],[48,13,48,18],[48,19,48,24],[48,25,48,30],[2,52,2,55],[37,45,37,57],[13,49,13,51],[13,0,13,1],[15,1,15,3],[15,4,15,6],[15,7,15,9],[15,10,15,12],[15,54,15,56],[35,0,35,1],[24,0,24,1]]}
[]
["Top up Option I",null,null,null,null,null,null,null,null,null,null,null,null,null,null,null,null,null,null,null,null,null,null,null,null,null,null,null,null,null,null,null,null,null,null,null,null,null,null,null,{"$f":"BA4","v":"Base Premium"},null,null,null,"Working"]
["Deductible",50000,null,null,null,null,null,null,null,null,null,null,null,null,null,null,null,null,null,null,null,null,null,null,null,null,null,null,null,null,null,null,null,null,null,null,null,null,null,null,"1 year","2 years","3 years"]
["Age Band/SI",50000,100000,150000,200000,null,null,null,null,null,null,null,null,null,null,null,null,null,null,null,null,null,null,null,null,null,null,null,null,null,null,null,null,null,null,null,null,null,null,null,{"$f":"IFERROR(INDEX($AS$39:$BF$134,MATCH(CONCATENATE(AW5&AV5&AX5),$AS$39:$AS$134,0),MATCH(AY5,$AS$39:$BF$39,0)),0)","v":1287},{"$f":"AO4*$AP$11","v":2574},{"$f":"AO4*$AQ$11","v":3861},null,"Sr. No.","No.of Insured","DOB","Age band","Plan","Deductible","Sum Insured","SI band","Base Premium","Family Floater discount","AYUSH","World Wide Cover","Reload","Premium","Wellness",null,null,"Multi Policy Year Discount",null,null,"Separate prm for each ind with longterm disc","Family Discount","Long Term Discount","Ind prm post discount",null,"Floater premium","Floater premium with long term discount","Floater Discount","Final Floater Premium"]
["91 days - 40 years",745.87500000000023,1022.1250000000003,1381.2500000000005,1740.3750000000007,null,null,null,null,null,null,null,null,null,null,null,null,null,null,null,null,null,null,null,null,null,null,null,null,null,null,null,null,null,null,null,null,null,null,null,{"$f":"IFERROR(INDEX($AS$39:$BF$134,MATCH(CONCATENATE(AW6&AV6&AX6),$AS$39:$AS$134,0),MATCH(AY6,$AS$39:$BF$39,0)),0)","v":1287},{"$f":"AO5*$AP$11","v":2574},{"$f":"AO5*$AQ$11","v":3861},null,null,{"$f":"IF(AU5=\"\",\"\",1)","v":1},{"$f":"IF(Sheet1!B6=\"\",\"\",Sheet1!A11)","v":40},{"$f":"IFERROR(LOOKUP(AU5,Master!$AS$16:$AU$20),0)","v":"91 days - 40 years"},{"$f":"IF(AU5=\"\",\"\",Sheet1!$B$3)","v":"Super Top up Option I"},{"$f":"IF(AU5=\"\",\"\",Sheet1!$D$3)","v":500000},{"$f":"IF(AU5=\"\",\"\",Sheet1!$F$3)","v":1000000},{"$f":"LOOKUP((AY5+AX5),$AS$22:$AU$24)","v":">8 & <= 15Lacs"},{"$f":"IFERROR(IF(Sheet1!$H$3=Master!$AO$3,Master!$AO4,(IF(Sheet1!$H$3=Master!$AP$3,Master!$AP4,(IF(Sheet1!$H$3=Master!$AQ$3,Master!$AQ4,0))))),0)","v":1287},null,{"$f":"IF(Sheet1!$D$5=\"Yes\",$AX$24*BA5,0)","v":0},{"$f":"IF(Sheet1!$F$5=\"Yes\",IFERROR(IF(Sheet1!$H$3=Master!$BN$14,Master!$BN15,(IF(Sheet1!$H$3=Master!$BO$14,Master!$BO15,(IF(Sheet1!$H$3=Master!$BP$14,Master!$BP15,0))))),0),0)","v":0},{"$f":"IFERROR(IF(Sheet1!$B$5=\"Yes\",Master!AY27,0),0)","v":0},{"$f":"SUM(BA5:BE5)","v":1287},{"$f":"IF(Sheet1!$H$5=\"Yes\",IF(Sheet1!$H$3=$AO$14,AO15,IF(Sheet1!$H$3=$AP$14,AP15,IF(Sheet1!$H$3=$AQ$14,AQ15,0))),0)","v":0},null,null,null,"2 years","3 years",{"$f":"BF5*(100%-$BO$5)","v":1287},{"$f":"IF(COUNT(AT5:AT9)>=2,10%,0%)","v":0.1},{"$f":"IF(Sheet1!H3=\"3 years\",10%,IF(Sheet1!H3=\"2 years\",7.5%,0%))","v":0},{"$f":"BF5*(100%-$BN$5-$BO$5)","v":1158.3},"Base Premium",{"$f":"BA11","v":2574},{"$f":"(BR5*(100%-$BO$5))","v":2574},{"$f":"BS5*(100%-BH20)","v":2059.2000000000003},{"$f":"IF(BE13=\"Available floater combinations - 1A1C, 1A2C, 1A3C, 2A, 2A1C, 2A2C or 2A3C\",0,ROUND(SUM(BT5:BT7),0))","v":2059}]
["41 years  - 50 years",1314.4950000000001,1801.345,2434.2500000000009,3067.1550000000007,null,null,null,null,null,null,null,null,null,null,null,null,null,null,null,null,null,null,null,null,null,null,null,null,null,null,null,null,null,null,null,null,null,null,null,{"$f":"IFERROR(INDEX($AS$39:$BF$134,MATCH(CONCATENATE(AW7&AV7&AX7),$AS$39:$AS$134,0),MATCH(AY7,$AS$39:$BF$39,0)),0)","v":0},{"$f":"AO6*$AP$11","v":0},{"$f":"AO6*$AQ$11","v":0},null,null,{"$f":"IF(AU6=\"\",\"\",1)","v":1},{"$f":"IF(Sheet1!D6=\"\",\"\",Sheet1!A12)","v":38},{"$f":"IFERROR(LOOKUP(AU6,Master!$AS$16:$AU$20),0)","v":"91 days - 40 years"},{"$f":"IF(AU6=\"\",\"\",Sheet1!$B$3)","v":"Super Top up Option I"},{"$f":"IF(AU6=\"\",\"\",Sheet1!$D$3)","v":500000},{"$f":"IF(AU6=\"\",\"\",Sheet1!$F$3)","v":1000000},{"$f":"LOOKUP((AY6+AX6),$AS$22:$AU$24)","v":">8 & <= 15Lacs"},{"$f":"IFERROR(IF(Sheet1!$H$3=Master!$AO$3,Master!$AO5,(IF(Sheet1!$H$3=Master!$AP$3,Master!$AP5,(IF(Sheet1!$H$3=Master!$AQ$3,Master!$AQ5,0))))),0)","v":1287},null,{"$f":"IF(Sheet1!$D$5=\"Yes\",$AX$24*BA6,0)","v":0},{"$f":"IF(Sheet1!$F$5=\"Yes\",IFERROR(IF(Sheet1!$H$3=Master!$BN$14,Master!$BN16,(IF(Sheet1!$H$3=Master!$BO$14,Master!$BO16,(IF(Sheet1!$H$3=Master!$BP$14,Master!$BP16,0))))),0),0)","v":0},{"$f":"IFERROR(IF(Sheet1!$B$5=\"Yes\",Master!AY28,0),0)","v":0},{"$f":"SUM(BA6:BE6)","v":1287},{"$f":"IF(Sheet1!$H$5=\"Yes\",IF(Sheet1!$H$3=$AO$14,AO16,IF(Sheet1!$H$3=$AP$14,AP16,IF(Sheet1!$H$3=$AQ$14,AQ16,0))),0)","v":0},null,null,"Disc amount",{"$f":"$BF$10*7.5%","v":193.04999999999998},{"$f":"$BF$10*10%","v":257.40000000000003},{"$f":"BF6*(100%-$BO$5)","v":1287},null,null,{"$f":"BF6*(100%-$BN$5-$BO$5)","v":1158.3},"Optional Cover",{"$f":"SUM(BC11:BE11)","v":0},{"$f":"(BR6*(100%-$BO$5))","v":0},{"$f":"BS6","v":0}]
["51 years  - 60 years",2316.6000000000004,3174.6000000000008,4290.0000000000009,5405.4000000000015,null,null,null,null,null,null,null,null,null,null,null,null,null,null,null,null,null,null,null,null,null,null,null,null,null,null,null,null,null,null,null,null,null,null,null,{"$f":"IFERROR(INDEX($AS$39:$BF$134,MATCH(CONCATENATE(AW8&AV8&AX8),$AS$39:$AS$134,0),MATCH(AY8,$AS$39:$BF$39,0)),0)","v":0},{"$f":"AO7*$AP$11","v":0},{"$f":"AO7*$AQ$11","v":0},null,null,{"$f":"IF(AU7=\"\",\"\",1)","v":""},{"$f":"IF(Sheet1!F6=\"\",\"\",IF(Sheet1!A13=\"3-11 Months\",0.25,Sheet1!A13))","v":""},{"$f":"IFERROR(LOOKUP(AU7,Master!$AS$16:$AU$20),0)","v":0},{"$f":"IF(AU7=\"\",\"\",Sheet1!$B$3)","v":""},{"$f":"IF(AU7=\"\",\"\",Sheet1!$D$3)","v":""},{"$f":"IF(AU7=\"\",\"\",Sheet1!$F$3)","v":""},{"$error":"#VALUE!"},{"$f":"IFERROR(IF(Sheet1!$H$3=Master!$AO$3,Master!$AO6,(IF(Sheet1!$H$3=Master!$AP$3,Master!$AP6,(IF(Sheet1!$H$3=Master!$AQ$3,Master!$AQ6,0))))),0)","v":0},null,{"$f":"IF(Sheet1!$D$5=\"Yes\",$AX$24*BA7,0)","v":0},{"$f":"IF(Sheet1!$F$5=\"Yes\",IFERROR(IF(Sheet1!$H$3=Master!$BN$14,Master!$BN17,(IF(Sheet1!$H$3=Master!$BO$14,Master!$BO17,(IF(Sheet1!$H$3=Master!$BP$14,Master!$BP17,0))))),0),0)","v":0},{"$f":"IFERROR(IF(Sheet1!$B$5=\"Yes\",Master!AY29,0),0)","v":0},0,{"$f":"IF(Sheet1!$H$5=\"Yes\",IF(Sheet1!$H$3=$AO$14,AO17,IF(Sheet1!$H$3=$AP$14,AP17,IF(Sheet1!$H$3=$AQ$14,AQ17,0))),0)","v":0},null,null,null,null,null,0,null,null,0,"Wellness",{"$f":"BG11","v":0},{"$f":"BR7","v":0},{"$f":"BS7","v":0}]
["61 years  - 65 years",4668.3000000000011,6397.3000000000011,8645.0000000000018,10892.7,null,null,null,null,null,null,null,null,null,null,null,null,null,null,null,null,null,null,null,null,null,null,null,null,null,null,null,null,null,null,null,null,null,null,null,{"$f":"IFERROR(INDEX($AS$39:$BF$134,MATCH(CONCATENATE(AW9&AV9&AX9),$AS$39:$AS$134,0),MATCH(AY9,$AS$39:$BF$39,0)),0)","v":0},{"$f":"AO8*$AP$11","v":0},{"$f":"AO8*$AQ$11","v":0},null,null,{"$f":"IF(AU8=\"\",\"\",1)","v":""},{"$f":"IF(Sheet1!H6=\"\",\"\",IF(Sheet1!A14=\"3-11 Months\",0.25,Sheet1!A14))","v":""},{"$f":"IFERROR(LOOKUP(AU8,Master!$AS$16:$AU$20),0)","v":0},{"$f":"IF(AU8=\"\",\"\",Sheet1!$B$3)","v":""},{"$f":"IF(AU8=\"\",\"\",Sheet1!$D$3)","v":""},{"$f":"IF(AU8=\"\",\"\",Sheet1!$F$3)","v":""},{"$error":"#VALUE!"},{"$f":"IFERROR(IF(Sheet1!$H$3=Master!$AO$3,Master!$AO7,(IF(Sheet1!$H$3=Master!$AP$3,Master!$AP7,(IF(Sheet1!$H$3=Master!$AQ$3,Master!$AQ7,0))))),0)","v":0},null,{"$f":"IF(Sheet1!$D$5=\"Yes\",$AX$24*BA8,0)","v":0},{"$f":"IF(Sheet1!$F$5=\"Yes\",IFERROR(IF(Sheet1!$H$3=Master!$BN$14,Master!$BN18,(IF(Sheet1!$H$3=Master!$BO$14,Master!$BO18,(IF(Sheet1!$H$3=Master!$BP$14,Master!$BP18,0))))),0),0)","v":0},{"$f":"IFERROR(IF(Sheet1!$B$5=\"Yes\",Master!AY30,0),0)","v":0},0,{"$f":"IF(Sheet1!$H$5=\"Yes\",IF(Sheet1!$H$3=$AO$14,AO18,IF(Sheet1!$H$3=$AP$14,AP18,IF(Sheet1!$H$3=$AQ$14,AQ18,0))),0)","v":0},null,null,null,null,null,0,null,null,0,null,null,{"$f":"BS6+BS7","v":0}]
["Above 65 years",8143.2000000000007,11159.2,15080,19000.8,null,null,null,null,null,null,null,null,null,null,null,null,null,null,null,null,null,null,null,null,null,null,null,null,null,null,null,null,null,null,null,null,null,null,null,null,null,null,null,null,{"$f":"IF(AU9=\"\",\"\",1)","v":""},{"$f":"IF(Sheet1!B7=\"\",\"\",IF(Sheet1!A15=\"3-11 Months\",0.25,Sheet1!A15))","v":""},{"$f":"IFERROR(LOOKUP(AU9,Master!$AS$16:$AU$20),0)","v":0},{"$f":"IF(AU9=\"\",\"\",Sheet1!$B$3)","v":""},{"$f":"IF(AU9=\"\",\"\",Sheet1!$D$3)","v":""},{"$f":"IF(AU9=\"\",\"\",Sheet1!$F$3)","v":""},{"$error":"#VALUE!"},{"$f":"IFERROR(IF(Sheet1!$H$3=Master!$AO$3,Master!$AO8,(IF(Sheet1!$H$3=Master!$AP$3,Master!$AP8,(IF(Sheet1!$H$3=Master!$AQ$3,Master!$AQ8,0))))),0)","v":0},null,{"$f":"IF(Sheet1!$D$5=\"Yes\",$AX$24*BA9,0)","v":0},{"$f":"IF(Sheet1!$F$5=\"Yes\",IFERROR(IF(Sheet1!$H$3=Master!$BN$14,Master!$BN19,(IF(Sheet1!$H$3=Master!$BO$14,Master!$BO19,(IF(Sheet1!$H$3=Master!$BP$14,Master!$BP19,0))))),0),0)","v":0},{"$f":"IFERROR(IF(Sheet1!$B$5=\"Yes\",Master!AY31,0),0)","v":0},0,{"$f":"IF(Sheet1!$H$5=\"Yes\",IF(Sheet1!$H$3=$AO$14,AO19,IF(Sheet1!$H$3=$AP$14,AP19,IF(Sheet1!$H$3=$AQ$14,AQ19,0))),0)","v":0},null,null,null,null,null,0,null,null,0]
[null,null,null,null,null,null,null,null,null,null,null,null,null,null,null,null,null,null,null,null,null,null,null,null,null,null,null,null,null,null,null,null,null,null,null,null,null,null,null,null,null,null,null,null,null,null,null,null,null,null,"Total (Individual)",null,{"$f":"SUM(BA5:BA9)","v":2574},null,{"$f":"IF(Sheet1!$D$5=\"Yes\",SUM(BC5:BC9),0)","v":0},{"$f":"IF(Sheet1!$F$5=\"Yes\",SUM(BD5:BD9),0)","v":0},{"$f":"SUM(BE5:BE9)","v":0},{"$f":"SUM(BA10:BE10)","v":2574},{"$f":"IF(Sheet1!$H$5=\"Yes\",SUM(BG5:BG9),0)","v":0},null,null,null,null,null,{"$f":"ROUND(SUM(BM5:BM9)+BG10,0)","v":2574},null,null,{"$f":"SUM(BP5:BP9)","v":2316.6},null,{"$f":"\"Total Premium for all members of the family is, Rs.\"&\" \"&BM10&\" \"&\"(excluding GST & Stamp Duty) when each member is covered separately.\"","v":"Total Premium for all members of the family is, Rs. 2574 (excluding GST & Stamp Duty) when each member is covered separately."},{"$f":"\"Total Premium for all members of the family is, Rs.\"&\" \"&BP11&\" \"&\"(excluding GST & Stamp Duty)  when they are covered under a single policy\"","v":"Total Premium for all members of the family is, Rs. 2317 (excluding GST & Stamp Duty)  when they are covered under a single policy"},{"$f":"\"Total Premium when policy is opted on floater basis is, Rs.\"&\" \"&BU5&\" \"&\"(excluding GST & Stamp Duty)\"","v":"Total Premium when policy is opted on floater basis is, Rs. 2059 (excluding GST & Stamp Duty)"}]
[null,null,null,null,null,null,null,null,null,null,null,null,null,null,null,null,null,null,null,null,null,null,null,null,null,null,null,null,null,null,null,null,null,null,null,null,null,null,null,null,1,2,3,null,null,null,null,null,null,null,"Total (Family floater)",null,{"$f":"SUM(BA5:BA9)","v":2574},{"$f":"-IF(COUNT(AT5:AT6)>=1,Master!BH21,0)","v":-514.80000000000007},{"$f":"IF(Sheet1!$D$5=\"Yes\",$BA$11*$AX$24,0)","v":0},{"$f":"IF(Sheet1!$F$5=\"Yes\",Master!BN24,0)","v":0},{"$f":"IF(Sheet1!$B$5=\"Yes\",Master!$AX$22,0)","v":0},{"$f":"SUM(BA11:BE11)","v":2059.1999999999998},{"$f":"IF(AND(Sheet1!$H$5=\"Yes\",Sheet1!H3=\"1 year\"),Master!AO15,IF(AND(Sheet1!$H$5=\"Yes\",Sheet1!$H$3=\"2 years\"),Master!AP15,IF(AND(Sheet1!$H$5=\"Yes\",Sheet1!$H$3=\"3 years\"),Master!AQ15,0)))*COUNT(Master!AT5:AT9)","v":0},null,null,null,null,null,null,null,"with wellness",{"$f":"ROUND(BP10+BG10,0)","v":2317},null,{"$f":"\"Sum insured available for each individual is Rs.\"&\" \"&Sheet1!F3&\" \"&\"with deductible of Rs.\"&\" \"&Sheet1!D3&\" \"&\"under Health Connect Supra policy\"","v":"Sum insured available for each individual is Rs. 1000000 with deductible of Rs. 500000 under Health Connect Supra policy"},{"$f":"\"Sum insured available for each family member is Rs.\"&\" \"&Sheet1!F3&\" \"&\"with deductible of Rs.\"&\" \"&Sheet1!D3&\" \"&\"under Health Connect Supra policy\"","v":"Sum insured available for each family member is Rs. 1000000 with deductible of Rs. 500000 under Health Connect Supra policy"},{"$f":"IF(BE13=\"Available floater combinations - 1A1C, 1A2C, 1A3C, 2A, 2A1C, 2A2C or 2A3C\",\"Sum insured of Rs.\"&\" \"&0&\" \"&\"with deductible of Rs.\"&\" \"&0&\" \"&\"is available for the entire family.\",\"Sum insured of Rs.\"&\" \"&Sheet1!F3&\" \"&\"with deductible of Rs.\"&\" \"&Sheet1!D3&\" \"&\"is available for the entire family.\")","v":"Sum insured of Rs. 1000000 with deductible of Rs. 500000 is available for the entire family."}]
[null,null,null,null,null,null,null,null,null,null,null,null,null,null,null,null,null,null,null,null,null,null,null,null,null,null,null,null,null,null,null,null,null,null,null,null,null,null,null,null,null,null,null,null,null,null,null,null,null,null,null,null,{"$f":"ROUND(BC11+BD11+BE11+BG11,0)","v":0},null,null,null,null,null,null,null,null,null,null,null,null,"BN","BO","BP"]
[null,null,null,null,null,null,null,null,null,null,null,null,null,null,null,null,null,null,null,null,null,null,null,null,null,null,null,null,null,null,null,null,null,null,null,null,null,null,null,null,"Wellness",null,null,null,null,null,null,null,"Reload Calc (Family Floater)","Loading",null,null,null,"Family Floater Disc Calc",null,"Floter Type",{"$f":"IF(AND(SUM($AT$5:$AT$6)=1,SUM($AT$7:$AT$9)=1),\"1A1C\",IF(AND(SUM($AT$5:$AT$6)=1,SUM($AT$7:$AT$9)=2),\"1A2C\",IF(AND(SUM($AT$5:$AT$6)=1,SUM($AT$7:$AT$9)=3),\"1A3C\",IF(AND(SUM($AT$5:$AT$6)=2,SUM($AT$7:$AT$9)=0),\"2A\",IF(AND(SUM($AT$5:$AT$6)=2,SUM($AT$7:$AT$9)=1),\"2A1C\",IF(AND(SUM($AT$5:$AT$6)=2,SUM($AT$7:$AT$9)=2),\"2A2C\",IF(AND(SUM($AT$5:$AT$6)=2,SUM($AT$7:$AT$9)=3),\"2A3C\",\"Available floater combinations - 1A1C, 1A2C, 1A3C, 2A, 2A1C, 2A2C or 2A3C\")))))))","v":"2A"},null,"Family Floater Premium Calc",null,null,null,null,"World Wide Cover",null,"AO","AP","AQ"]
["Top Up",null,"Option II",null,null,null,null,null,null,null,null,null,null,null,null,null,null,null,null,null,null,null,null,null,null,null,null,null,null,null,null,null,null,null,null,null,null,null,null,null,"1 year","2 years","3 years",null,null,null,null,null,null,"Deductible + Sum Insured",null,null,null,"Per child",0.15,null,null,null,"Floater disc","Adult",null,"Children",null,"Sr. No.","Insured Name","1 year","2 years","3 years"]
["Top up Option II",null,null,null,null,null,null,null,null,null,null,null,null,null,null,null,null,null,null,null,null,null,null,null,null,null,null,null,null,null,null,null,null,null,null,null,null,null,null,{"$f":"AT5","v":1},{"$f":"IF(AN15=1,400,0)","v":400},{"$f":"AO15*$AP$21","v":800},{"$f":"AO15*$AQ$21","v":1200},null,"Age band",null,null,null,"Age Bands/Sum Insured","Up to 8 Lacs",">8 & <= 15Lacs",">15 Lacs",null,"For addition of 1 adult, the discount will be:",null,null,null,null,"Highest Age",{"$f":"MAX($AU$5:$AU$9)","v":40},null,null,null,{"$f":"AS5","v":0},{"$f":"AT5","v":1},{"$f":"IFERROR(INDEX($BH$39:$BU$94,MATCH(CONCATENATE(AW5&AV5&AX5),$BH$39:$BH$94,0),MATCH(AY5,$BH$39:$BU$39,0)),0)","v":985},{"$f":"BN15*2","v":1970},{"$f":"BN15*3","v":2955}]
["Deductible",200000,null,null,300000,null,null,400000,null,null,500000,null,null,null,null,null,null,null,null,null,null,null,null,null,null,null,null,null,null,null,null,null,null,null,null,null,null,null,null,{"$f":"AT6","v":1},{"$f":"IF(AN16=1,400,0)","v":400},{"$f":"AO16*$AP$21","v":800},{"$f":"AO16*$AQ$21","v":1200},null,{"$f":"91/365","v":0.24931506849315069},40,"91 days - 40 years",null,"91 days - 40 years",0.1,0.05,0.02,null,null,"Deductible + Sum Insured",null,null,null,"D + SI",{"$f":"AX5+AY5","v":1500000},null,null,null,{"$f":"AS6","v":0},1,{"$f":"IFERROR(INDEX($BH$39:$BU$94,MATCH(CONCATENATE(AW6&AV6&AX6),$BH$39:$BH$94,0),MATCH(AY6,$BH$39:$BU$39,0)),0)","v":985},{"$f":"BN16*2","v":1970},{"$f":"BN16*3","v":2955}]
["Age Band/SI",300000,500000,700000,300000,500000,700000,300000,500000,700000,300000,500000,700000,null,null,null,null,null,null,null,null,null,null,null,null,null,null,null,null,null,null,null,null,null,null,null,null,null,null,"",{"$f":"IF(AN17=1,400,0)","v":0},0,0,null,{"$f":"AT16+1","v":41},50,"41 years  - 50 years",null,"41 years  - 50 years",0.15,0.1,0.05,null,"Age Bands/Sum Insured","Up to 8 Lacs",">8 & <= 15Lacs",">15 Lacs",null,"Age band of Highest",{"$f":"LOOKUP(BH15,$AS$16:$AU$20)","v":"91 days - 40 years"},null,{"$f":"COUNTIFS(AU7:AU9,\">=0.25\",AU7:AU9,\"<=25\",AU7:AU9,\"<=18\")","v":0},null,{"$f":"AS7","v":0},"",0,0,0]
["91 days - 40 years",994.49999999999989,1193.3999999999999,1403.9999999999998,673.19999999999993,826.19999999999993,944.99999999999989,459,607.49999999999989,647.99999999999989,414.375,514.79999999999995,614.24999999999989,null,null,null,null,null,null,null,null,null,null,null,null,null,null,null,null,null,null,null,null,null,null,null,null,null,null,"",{"$f":"IF(AN18=1,400,0)","v":0},0,0,null,{"$f":"AT17+1","v":51},60,"51 years  - 60 years",null,"51 years  - 60 years",0.25,0.15,7.4999999999999997E-2,null,"91 days - 40 years",0.25,0.2,0.15,null,"SI band",{"$f":"LOOKUP(BH16,$AS$22:$AU$24)","v":">8 & <= 15Lacs"},null,{"$f":"IF(BJ17=COUNT(AT7:AT9),\"Yes\",\"No\")","v":"Yes"},null,{"$f":"AS8","v":0},"",0,0,0]
["41 years  - 50 years",1752.66,2103.192,2358.7199999999998,1186.4159999999999,1456.0559999999998,1587.6,808.92000000000007,1020.5999999999999,967.68,730.27499999999998,810.81,917.28,null,null,null,null,null,null,null,null,null,null,null,null,null,null,null,null,null,null,null,null,null,null,null,null,null,null,"",{"$f":"IF(AN19=1,400,0)","v":0},0,0,null,61,65,"61 years  - 65 years",null,"61 years  - 65 years",0.3,0.2,0.1,null,"41 years  - 50 years",0.3,0.25,0.2,null,"Discount %",{"$f":"IF(SUM(AT5:AT6)>1,INDEX($BB$17:$BE$22,MATCH($BH$17,$BB$17:$BB$22,0),MATCH($BH$18,$BB$17:$BE$17,0)),0)","v":0.2},null,{"$f":"COUNT(AT7:AT9)*15%","v":0},null,{"$f":"AS9","v":0},"",0,0,0]
["51 years  - 60 years",3088.7999999999993,3706.559999999999,4118.3999999999996,2090.8799999999997,2566.0799999999995,2771.9999999999995,1425.6,1781.9999999999998,1900.7999999999997,1286.9999999999998,1415.6999999999998,1801.7999999999995,null,null,null,null,null,null,null,null,null,null,null,null,null,null,null,null,null,null,null,null,null,null,null,null,null,null,null,null,null,null,null,66,200,"Above 65 years",null,"Above 65 years",0.35,0.2,0.1,null,"51 years  - 60 years",0.35,0.3,0.25,null,"Total discount %",{"$f":"MIN(40%,(BH19+BJ19))","v":0.2},null,null,null,null,"Total",{"$f":"SUM(BN15:BN19)","v":1970},{"$f":"SUM(BO15:BO19)","v":3940},5910]
["61 years  - 65 years",6224.4,7469.2799999999988,8536.32,4213.4399999999987,5171.0399999999991,5745.5999999999985,2872.7999999999997,3693.599999999999,4268.16,2593.4999999999995,3178.8899999999994,3734.6399999999994,null,null,null,null,null,null,null,null,null,null,null,null,null,null,null,null,null,null,null,null,null,null,null,null,null,null,null,1,2,3,null,"Sum Insured",null,null,null,"Loading %",{"$f":"INDEX($AW$15:$AZ$20,MATCH($BH$17,$AW$15:$AW$20,0),MATCH($BH$18,$AW$15:$AZ$15,0))","v":0.05},null,null,null,"61 years  - 65 years",0.35,0.35,0.25,null,"Discount amount",{"$f":"BH20*$BA$11","v":514.80000000000007},null,null,null,null,"Family floater disc",{"$f":"IF(COUNT(AT5:AT6)>=1,Master!$BH$20*Master!BN20,0)","v":394},{"$f":"IF(COUNT(AT5:AT6)>=1,Master!$BH$20*Master!BO20,0)","v":788},{"$f":"IF(COUNT(AT5:AT6)>=1,Master!$BH$20*Master!BP20,0)","v":1182}]
["Above 65 years",10857.599999999999,13029.119999999999,15200.639999999998,7349.7599999999984,9020.159999999998,10231.199999999997,5011.2,6577.1999999999989,7015.6799999999994,4523.9999999999991,5225.2199999999984,6650.2799999999988,null,null,null,null,null,null,null,null,null,null,null,null,null,null,null,null,null,null,null,null,null,null,null,null,null,null,null,null,null,null,null,0,800000,"Up to 8 Lacs",null,"Loading amount",{"$f":"$AX$21*SUM(BA11:BD11)","v":102.96},null,null,null,"Above 65 years",0.35,0.35,0.25,null,null,null,null,null,null,null,"Loading for WW",{"$f":"BN20-BN21","v":1576},{"$f":"BO20-BO21","v":3152},4728]
[null,null,null,null,null,null,null,null,null,null,null,null,null,null,null,null,null,null,null,null,null,null,null,null,null,null,null,null,null,null,null,null,null,null,null,null,null,null,null,null,null,null,null,null,800001,1500000,">8 & <= 15Lacs"]
[null,null,null,null,null,null,null,null,null,null,null,null,null,null,null,null,null,null,null,null,null,null,null,null,null,null,null,null,null,null,null,null,null,null,null,null,null,null,null,null,null,null,null,null,1500001,10000000,">15 Lacs",null,"Ayush Loading ",0.1,null,null,null,"Wellness",400,null,null,null,null,null,null,null,null,null,"Worlwide final",{"$f":"IFERROR(IF(Sheet1!$H$3=Master!$BN$14,Master!$BN22,(IF(Sheet1!$H$3=Master!$BO$14,Master!$BO22,(IF(Sheet1!$H$3=Master!$BP$14,Master!$BP22,0))))),0)","v":1576}]
["Top Up",null,"Option III"]
["Top up Option III",null,null,null,null,null,null,null,null,null,null,null,null,null,null,null,null,null,null,null,null,null,null,null,null,null,null,null,null,null,null,null,null,null,null,null,null,null,null,null,null,null,null,null,null,null,null,null,"Reload calc (Individual)","Loading %","Loading amount"]
["Deductible",500000,null,null,750000,null,null,1000000,null,null,null,null,null,null,null,null,null,null,null,null,null,null,null,null,null,null,null,null,null,null,null,null,null,null,null,null,null,null,null,null,null,null,null,null,null,null,null,null,{"$f":"AT5","v":1},{"$f":"IFERROR(INDEX($AW$15:$AZ$20,MATCH(AV5,$AW$15:$AW$20,0),MATCH(AZ5,$AW$15:$AZ$15,0)),0)","v":0.05},{"$f":"AX27*SUM(BA5:BD5)","v":64.350000000000009}]
["Age Band/SI",1000000,1500000,2000000,1000000,1500000,2000000,1000000,1500000,2000000,null,null,null,null,null,null,null,null,null,null,null,null,null,null,null,null,null,null,null,null,null,null,null,null,null,null,null,null,null,null,null,null,null,null,null,null,null,null,{"$f":"AT6","v":1},0.05,{"$f":"AX28*SUM(BA6:BD6)","v":64.350000000000009}]
["91 days - 40 years",880.12031249999984,1178.8278124999999,1536.21,360.57,487.83000000000004,509.04,295.44499999999999,332.5625,337.86500000000001,null,null,null,null,null,null,null,null,null,null,null,null,null,null,null,null,null,null,null,null,null,null,null,null,null,null,null,null,null,null,null,null,null,null,null,null,null,null,{"$f":"AT7","v":""},{"$f":"IFERROR(INDEX($AW$15:$AZ$20,MATCH(AV7,$AW$15:$AW$20,0),MATCH(AZ7,$AW$15:$AZ$15,0)),0)","v":0},0]
["41 years  - 50 years",1150.0238749999996,1554.7306626168217,1913.5146616822421,576.91200000000003,780.52800000000002,814.46400000000006,352.71199999999999,412.1,420.584,null,null,null,null,null,null,null,null,null,null,null,null,null,null,null,null,null,null,null,null,null,null,null,null,null,null,null,null,null,null,null,null,null,null,null,null,null,null,{"$f":"AT8","v":""},{"$f":"IFERROR(INDEX($AW$15:$AZ$20,MATCH(AV8,$AW$15:$AW$20,0),MATCH(AZ8,$AW$15:$AZ$15,0)),0)","v":0},0]
["51 years  - 60 years",2065.3489999999997,2440.8669999999997,3004.1440000000002,1019.898,1379.8620000000001,1439.856,469.97299999999996,574.96249999999986,589.9609999999999,null,null,null,null,null,null,null,null,null,null,null,null,null,null,null,null,null,null,null,null,null,null,null,null,null,null,null,null,null,null,null,null,null,null,null,null,null,null,{"$f":"AT9","v":""},0,0]
["61 years  - 65 years",5128.1676874999985,5270.0537499999991,6356.4955999999984,2153.1179999999999,2913.0420000000004,3039.6960000000004,769.94299999999987,991.58749999999998,1023.251]
["Above 65 years",9528.7692499999976,10605.210613813808,13052.566909309302,3883.8539999999998,5254.6259999999993,5483.0879999999997,1228.0789999999997,1627.8874999999996,1685.0029999999997]
[]
[]
["Super Top Up",null,"Option I"]
["Super top up Option I",null,null,null,null,null,null,null,null,null,null,null,null,null,null,null,null,null,null,null,null,null,null,null,null,null,null,null,null,null,null,null,null,null,null,null,null,null,null,null,null,null,null,null,"Basic rates",null,null,null,null,null,null,null,null,null,null,null,null,null,null,"World wide rates","Super Top up"]
["Deductible",200000,null,null,null,null,null,300000,null,null,null,null,null,400000,null,null,null,null,null,500000,null,null,null,null,null,750000,null,null,null,null,null,1000000,null,null,null,null,null,null,null,null,null,null,null,null,"Options and Deductibles","Sum Insured",null,null,null,null,null,null,null,null,null,null,null,null,null,null,"Sum Insured"]
["Age Band/SI",300000,500000,700000,1000000,1500000,2000000,300000,500000,700000,1000000,1500000,2000000,300000,500000,700000,1000000,1500000,2000000,300000,500000,700000,1000000,1500000,2000000,300000,500000,700000,1000000,1500000,2000000,300000,500000,700000,1000000,1500000,2000000,null,null,null,null,null,null,null,"Options and Deductibles",50000,100000,150000,200000,300000,500000,700000,1000000,1500000,2000000,3000000,5000000,10000000,null,"Options and Deductibles",50000,100000,150000,200000,300000,500000,700000,1000000,1500000,2000000,3000000,5000000,10000000]
["91 days - 40 years",1591,1909,2246,2387,2948,3276,1077,1322,1512,1771,2621,2903,734,972,1037,1555,2056,2419,663,824,983,1287,1724,2246,460,581,743,899,1125,1162,303,353,390,428,494,503,null,null,null,null,null,null,null,{"$f":"A2&A5&B3","v":"Top up Option I91 days - 40 years50000"},746,1022,1381,1740,0,0,0,0,0,0,0,0,0,null,"Super top up Option I91 days - 40 years200000",0,0,0,0,887,1478,2069,2956,4434,5912,0,0,0]
["41 years  - 50 years",2804,3365,3774,4009,4717,5241,1898,2329,2540,2975,4193,4644,1294,1633,1548,2313,3002,3870,1168,1297,1468,1682,2273,2798,597,801,1072,1283,1644,1704,333,418,469,530,635,650,null,null,null,null,null,null,null,{"$f":"$A$2&A6&$B$3","v":"Top up Option I41 years  - 50 years50000"},1314,1801,2434,3067,0,0,0,0,0,0,0,0,0,null,"Super top up Option I41 years  - 50 years200000",0,0,0,0,1738,2897,4056,5794,8690,11587,0,0,0]
["51 years  - 60 years",4942,5930,6589,7001,8339,9265,3345,4105,4435,5195,7412,8211,2281,2851,3041,3849,5170,6842,2059,2265,2883,3020,3569,4393,850,1205,1679,2069,2708,2815,389,537,631,738,924,951,null,null,null,null,null,null,null,{"$f":"$A$2&A7&$B$3","v":"Top up Option I51 years  - 60 years50000"},2317,3175,4290,5405,0,0,0,0,0,0,0,0,0,null,"Super top up Option I51 years  - 60 years200000",0,0,0,0,3121,5202,7283,10405,15607,20810,0,0,0]
["61 years  - 65 years",9958,11950,13657,14510,17604,19560,6741,8273,9192,10768,15648,17334,4596,5909,6828,8864,11497,14445,4149,5086,5975,7498,7706,9294,1485,2221,3202,4081,5430,5655,528,835,1045,1270,1664,1720,null,null,null,null,null,null,null,{"$f":"$A$2&A8&$B$3","v":"Top up Option I61 years  - 65 years50000"},4668,6397,8645,10893,0,0,0,0,0,0,0,0,0,null,"Super top up Option I61 years  - 65 years200000",0,0,0,0,5616,9360,13105,18721,28081,37442,0,0,0]
["Above 65 years",17370,20845,24319,25839,31755,35284,11758,14431,16368,19174,28227,31267,8017,10522,11224,15784,22147,26056,7238,8360,10639,13933,15506,19085,2442,3753,5500,7154,9587,9993,739,1285,1678,2084,2793,2895,null,null,null,null,null,null,null,{"$f":"$A$2&A9&$B$3","v":"Top up Option IAbove 65 years50000"},8143,11159,15080,19001,0,0,0,0,0,0,0,0,0,null,"Super top up Option IAbove 65 years200000",0,0,0,0,9601,16001,22402,32003,48004,64006,0,0,0]
[null,null,null,null,null,null,null,null,null,null,null,null,null,null,null,null,null,null,null,null,null,null,null,null,null,null,null,null,null,null,null,null,null,null,null,null,null,null,null,null,null,null,null,null,{"$f":"$A$15&A18&$B$16","v":"Top up Option II91 days - 40 years200000"},0,0,0,0,995,1193,1404,0,0,0,0,0,0,null,"Super top up Option I91 days - 40 years300000",0,0,0,0,546,910,1273,1819,2729,3638,0,0,0]
[null,null,null,null,null,null,null,null,null,null,null,null,null,null,null,null,null,null,null,null,null,null,null,null,null,null,null,null,null,null,null,null,null,null,null,null,null,null,null,null,null,null,null,null,{"$f":"$A$15&A19&$B$16","v":"Top up Option II41 years  - 50 years200000"},0,0,0,0,1753,2103,2359,0,0,0,0,0,0,null,"Super top up Option I41 years  - 50 years300000",0,0,0,0,1070,1783,2496,3565,5348,7131,0,0,0]
["Super Top Up",null,"Option II",null,null,null,null,null,null,null,null,null,null,null,null,null,null,null,null,null,null,null,null,null,null,null,null,null,null,null,null,null,null,null,null,null,null,null,null,null,null,null,null,null,{"$f":"$A$15&A20&$B$16","v":"Top up Option II51 years  - 60 years200000"},0,0,0,0,3089,3707,4118,0,0,0,0,0,0,null,"Super top up Option I51 years  - 60 years300000",0,0,0,0,1921,3201,4482,6403,9604,12806,0,0,0]
["Super top up Option II",null,null,null,null,null,null,null,null,null,null,null,null,null,null,null,null,null,null,null,null,null,null,null,null,null,null,null,null,null,null,null,null,null,null,null,null,null,null,null,null,null,null,null,{"$f":"$A$15&A21&$B$16","v":"Top up Option II61 years  - 65 years200000"},0,0,0,0,6224,7469,8536,0,0,0,0,0,0,null,"Super top up Option I61 years  - 65 years300000",0,0,0,0,3456,5760,8064,11521,17281,23041,0,0,0]
["Deductible",1000000,null,null,null,null,null,1500000,null,null,null,null,null,2000000,null,null,null,null,null,3000000,null,null,null,null,null,4000000,null,null,null,null,null,null,null,null,null,null,null,null,null,null,null,null,null,null,{"$f":"$A$15&A22&$B$16","v":"Top up Option IIAbove 65 years200000"},0,0,0,0,10858,13029,15201,0,0,0,0,0,0,null,"Super top up Option IAbove 65 years300000",0,0,0,0,5908,9847,13786,19694,29541,39388,0,0,0]
["Age Band/SI",1000000,1500000,2000000,3000000,5000000,10000000,1000000,1500000,2000000,3000000,5000000,10000000,1000000,1500000,2000000,3000000,5000000,10000000,1000000,1500000,2000000,3000000,5000000,10000000,1000000,1500000,2000000,3000000,5000000,10000000,null,null,null,null,null,null,null,null,null,null,null,null,null,{"$f":"$A$15&A18&$E$16","v":"Top up Option II91 days - 40 years300000"},0,0,0,0,673,826,945,0,0,0,0,0,0,null,"Super top up Option I91 days - 40 years400000",0,0,0,0,409,682,955,1364,2046,2729,0,0,0]
["91 days - 40 years",429,496,505,534,600,752,418,456,471,479,532,654,372,452,464,475,509,623,362,438,456,471,486,562,271,305,317,341,362,448,null,null,null,null,null,null,null,null,null,null,null,null,null,{"$f":"$A$15&A19&$E$16","v":"Top up Option II41 years  - 50 years300000"},0,0,0,0,1186,1456,1588,0,0,0,0,0,0,null,"Super top up Option I41 years  - 50 years400000",0,0,0,0,802,1337,1872,2674,4011,5348,0,0,0]
["41 years  - 50 years",532,638,654,699,806,1049,514,575,599,611,696,891,441,568,587,605,660,842,429,550,575,599,623,745,296,354,390,417,429,562,null,null,null,null,null,null,null,null,null,null,null,null,null,{"$f":"$A$15&A20&$E$16","v":"Top up Option II51 years  - 60 years300000"},0,0,0,0,2091,2566,2772,0,0,0,0,0,0,null,"Super top up Option I51 years  - 60 years400000",0,0,0,0,1441,2401,3362,4802,7203,9604,0,0,0]
["51 years  - 60 years",742,930,958,1038,1226,1656,710,817,860,882,1032,1376,581,807,839,871,968,1290,559,774,817,860,903,1118,360,495,516,538,559,796,null,null,null,null,null,null,null,null,null,null,null,null,null,{"$f":"$A$15&A21&$E$16","v":"Top up Option II61 years  - 65 years300000"},0,0,0,0,4213,5171,5746,0,0,0,0,0,0,null,"Super top up Option I61 years  - 65 years400000",0,0,0,0,2592,4320,6048,8640,12961,17281,0,0,0]
["61 years  - 65 years",1279,1676,1733,1903,2300,3208,1211,1438,1529,1574,1892,2618,939,1416,1484,1552,1756,2436,894,1347,1438,1529,1620,2073,531,758,803,848,894,1393,null,null,null,null,null,null,null,null,null,null,null,null,null,{"$f":"$A$15&A22&$E$16","v":"Top up Option IIAbove 65 years300000"},0,0,0,0,7350,9020,10231,0,0,0,0,0,0,null,"Super top up Option IAbove 65 years400000",0,0,0,0,4431,7385,10339,14771,22156,29541,0,0,0]
["Above 65 years",2100,2816,2918,3226,3942,5579,1977,2387,2550,2632,3205,4515,1486,2346,2468,2591,2959,4187,1404,2223,2387,2550,2714,3532,750,1159,1241,1323,1404,2305,null,null,null,null,null,null,null,null,null,null,null,null,null,{"$f":"$A$15&A18&$H$16","v":"Top up Option II91 days - 40 years400000"},0,0,0,0,459,608,648,0,0,0,0,0,0,null,"Super top up Option I91 days - 40 years500000",0,0,0,0,296,493,690,985,1478,1971,0,0,0]
[null,null,null,null,null,null,null,null,null,null,null,null,null,null,null,null,null,null,null,null,null,null,null,null,null,null,null,null,null,null,null,null,null,null,null,null,null,null,null,null,null,null,null,null,{"$f":"$A$15&A19&$H$16","v":"Top up Option II41 years  - 50 years400000"},0,0,0,0,809,1021,968,0,0,0,0,0,0,null,"Super top up Option I41 years  - 50 years500000",0,0,0,0,579,966,1352,1931,2897,3862,0,0,0]
[null,null,null,null,null,null,null,null,null,null,null,null,null,null,null,null,null,null,null,null,null,null,null,null,null,null,null,null,null,null,null,null,null,null,null,null,null,null,null,null,null,null,null,null,{"$f":"$A$15&A20&$H$16","v":"Top up Option II51 years  - 60 years400000"},0,0,0,0,1426,1782,1901,0,0,0,0,0,0,null,"Super top up Option I51 years  - 60 years500000",0,0,0,0,1040,1734,2428,3468,5202,6937,0,0,0]
[null,null,null,null,null,null,null,null,null,null,null,null,null,null,null,null,null,null,null,null,null,null,null,null,null,null,null,null,null,null,null,null,null,null,null,null,null,null,null,null,null,null,null,null,{"$f":"$A$15&A21&$H$16","v":"Top up Option II61 years  - 65 years400000"},0,0,0,0,2873,3694,4268,0,0,0,0,0,0,null,"Super top up Option I61 years  - 65 years500000",0,0,0,0,1872,3120,4368,6240,9360,12481,0,0,0]
[null,null,null,null,null,null,null,null,null,null,null,null,null,null,null,null,null,null,null,null,null,null,null,null,null,null,null,null,null,null,null,null,null,null,null,null,null,null,null,null,null,null,null,null,{"$f":"$A$15&A22&$H$16","v":"Top up Option IIAbove 65 years400000"},0,0,0,0,5011,6577,7016,0,0,0,0,0,0,null,"Super top up Option IAbove 65 years500000",0,0,0,0,3200,5334,7467,10668,16001,21335,0,0,0]
[null,null,null,null,null,null,null,null,null,null,null,null,null,null,null,null,null,null,null,null,null,null,null,null,null,null,null,null,null,null,null,null,null,null,null,null,null,null,null,null,null,null,null,null,{"$f":"$A$15&A18&$K$16","v":"Top up Option II91 days - 40 years500000"},0,0,0,0,414,515,614,0,0,0,0,0,0,null,"Super top up Option I91 days - 40 years750000",0,0,0,0,191,252,312,403,555,706,0,0,0]
[null,null,null,null,null,null,null,null,null,null,null,null,null,null,null,null,null,null,null,null,null,null,null,null,null,null,null,null,null,null,null,null,null,null,null,null,null,null,null,null,null,null,null,null,{"$f":"$A$15&A19&$K$16","v":"Top up Option II41 years  - 50 years500000"},0,0,0,0,730,811,917,0,0,0,0,0,0,null,"Super top up Option I41 years  - 50 years750000",0,0,0,0,278,397,516,694,991,1288,0,0,0]
[null,null,null,null,null,null,null,null,null,null,null,null,null,null,null,null,null,null,null,null,null,null,null,null,null,null,null,null,null,null,null,null,null,null,null,null,null,null,null,null,null,null,null,null,{"$f":"$A$15&A20&$K$16","v":"Top up Option II51 years  - 60 years500000"},0,0,0,0,1287,1416,1802,0,0,0,0,0,0,null,"Super top up Option I51 years  - 60 years750000",0,0,0,0,420,634,847,1167,1701,2234,0,0,0]
[null,null,null,null,null,null,null,null,null,null,null,null,null,null,null,null,null,null,null,null,null,null,null,null,null,null,null,null,null,null,null,null,null,null,null,null,null,null,null,null,null,null,null,null,{"$f":"$A$15&A21&$K$16","v":"Top up Option II61 years  - 65 years500000"},0,0,0,0,2594,3179,3735,0,0,0,0,0,0,null,"Super top up Option I61 years  - 65 years750000",0,0,0,0,676,1060,1444,2020,2980,3940,0,0,0]
[null,null,null,null,null,null,null,null,null,null,null,null,null,null,null,null,null,null,null,null,null,null,null,null,null,null,null,null,null,null,null,null,null,null,null,null,null,null,null,null,null,null,null,null,{"$f":"$A$15&A22&$K$16","v":"Top up Option IIAbove 65 years500000"},0,0,0,0,4524,5225,6650,0,0,0,0,0,0,null,"Super top up Option IAbove 65 years750000",0,0,0,0,1085,1741,2398,3382,5024,6665,0,0,0]
[null,null,null,null,null,null,null,null,null,null,null,null,null,null,null,null,null,null,null,null,null,null,null,null,null,null,null,null,null,null,null,null,null,null,null,null,null,null,null,null,null,null,null,null,{"$f":"$A$26&A29&$B$27","v":"Top up Option III91 days - 40 years500000"},0,0,0,0,0,0,0,880,1179,1536,0,0,0,null,"Super top up Option I91 days - 40 years1000000",0,0,0,0,123,138,153,176,214,252,0,0,0]
[null,null,null,null,null,null,null,null,null,null,null,null,null,null,null,null,null,null,null,null,null,null,null,null,null,null,null,null,null,null,null,null,null,null,null,null,null,null,null,null,null,null,null,null,{"$f":"$A$26&A30&$B$27","v":"Top up Option III41 years  - 50 years500000"},0,0,0,0,0,0,0,1150,1555,1914,0,0,0,null,"Super top up Option I41 years  - 50 years1000000",0,0,0,0,145,174,204,249,323,397,0,0,0]
[null,null,null,null,null,null,null,null,null,null,null,null,null,null,null,null,null,null,null,null,null,null,null,null,null,null,null,null,null,null,null,null,null,null,null,null,null,null,null,null,null,null,null,null,{"$f":"$A$26&A31&$B$27","v":"Top up Option III51 years  - 60 years500000"},0,0,0,0,0,0,0,2065,2441,3004,0,0,0,null,"Super top up Option I51 years  - 60 years1000000",0,0,0,0,180,233,287,367,500,634,0,0,0]
[null,null,null,null,null,null,null,null,null,null,null,null,null,null,null,null,null,null,null,null,null,null,null,null,null,null,null,null,null,null,null,null,null,null,null,null,null,null,null,null,null,null,null,null,{"$f":"$A$26&A32&$B$27","v":"Top up Option III61 years  - 65 years500000"},0,0,0,0,0,0,0,5128,5270,6356,0,0,0,null,"Super top up Option I61 years  - 65 years1000000",0,0,0,0,244,340,436,580,820,1060,0,0,0]
[null,null,null,null,null,null,null,null,null,null,null,null,null,null,null,null,null,null,null,null,null,null,null,null,null,null,null,null,null,null,null,null,null,null,null,null,null,null,null,null,null,null,null,null,{"$f":"$A$26&A33&$B$27","v":"Top up Option IIIAbove 65 years500000"},0,0,0,0,0,0,0,9529,10605,13053,0,0,0,null,"Super top up Option IAbove 65 years1000000",0,0,0,0,346,510,674,921,1331,1741,0,0,0]
[null,null,null,null,null,null,null,null,null,null,null,null,null,null,null,null,null,null,null,null,null,null,null,null,null,null,null,null,null,null,null,null,null,null,null,null,null,null,null,null,null,null,null,null,{"$f":"$A$26&A29&$E$27","v":"Top up Option III91 days - 40 years750000"},0,0,0,0,0,0,0,361,488,509,0,0,0,null,"Super top up Option II91 days - 40 years1000000",0,0,0,0,0,0,0,176,214,252,327,479,858]
[null,null,null,null,null,null,null,null,null,null,null,null,null,null,null,null,null,null,null,null,null,null,null,null,null,null,null,null,null,null,null,null,null,null,null,null,null,null,null,null,null,null,null,null,{"$f":"$A$26&A30&$E$27","v":"Top up Option III41 years  - 50 years750000"},0,0,0,0,0,0,0,577,781,814,0,0,0,null,"Super top up Option II41 years  - 50 years1000000",0,0,0,0,0,0,0,249,323,397,546,843,1586]
[null,null,null,null,null,null,null,null,null,null,null,null,null,null,null,null,null,null,null,null,null,null,null,null,null,null,null,null,null,null,null,null,null,null,null,null,null,null,null,null,null,null,null,null,{"$f":"$A$26&A31&$E$27","v":"Top up Option III51 years  - 60 years750000"},0,0,0,0,0,0,0,1020,1380,1440,0,0,0,null,"Super top up Option II51 years  - 60 years1000000",0,0,0,0,0,0,0,367,500,634,900,1434,2768]
[null,null,null,null,null,null,null,null,null,null,null,null,null,null,null,null,null,null,null,null,null,null,null,null,null,null,null,null,null,null,null,null,null,null,null,null,null,null,null,null,null,null,null,null,{"$f":"$A$26&A32&$E$27","v":"Top up Option III61 years  - 65 years750000"},0,0,0,0,0,0,0,2153,2913,3040,0,0,0,null,"Super top up Option II61 years  - 65 years1000000",0,0,0,0,0,0,0,580,820,1060,1540,2500,4900]
[null,null,null,null,null,null,null,null,null,null,null,null,null,null,null,null,null,null,null,null,null,null,null,null,null,null,null,null,null,null,null,null,null,null,null,null,null,null,null,null,null,null,null,null,{"$f":"$A$26&A33&$E$27","v":"Top up Option IIIAbove 65 years750000"},0,0,0,0,0,0,0,3884,5255,5483,0,0,0,null,"Super top up Option IIAbove 65 years1000000",0,0,0,0,0,0,0,921,1331,1741,2562,4203,8306]
[null,null,null,null,null,null,null,null,null,null,null,null,null,null,null,null,null,null,null,null,null,null,null,null,null,null,null,null,null,null,null,null,null,null,null,null,null,null,null,null,null,null,null,null,{"$f":"$A$26&A29&$H$27","v":"Top up Option III91 days - 40 years1000000"},0,0,0,0,0,0,0,295,333,338,0,0,0,null,"Super top up Option II91 days - 40 years1500000",0,0,0,0,0,0,0,161,191,221,282,403,706]
[null,null,null,null,null,null,null,null,null,null,null,null,null,null,null,null,null,null,null,null,null,null,null,null,null,null,null,null,null,null,null,null,null,null,null,null,null,null,null,null,null,null,null,null,{"$f":"$A$26&A30&$H$27","v":"Top up Option III41 years  - 50 years1000000"},0,0,0,0,0,0,0,353,412,421,0,0,0,null,"Super top up Option II41 years  - 50 years1500000",0,0,0,0,0,0,0,219,278,338,457,694,1288]
[null,null,null,null,null,null,null,null,null,null,null,null,null,null,null,null,null,null,null,null,null,null,null,null,null,null,null,null,null,null,null,null,null,null,null,null,null,null,null,null,null,null,null,null,{"$f":"$A$26&A31&$H$27","v":"Top up Option III51 years  - 60 years1000000"},0,0,0,0,0,0,0,470,575,590,0,0,0,null,"Super top up Option II51 years  - 60 years1500000",0,0,0,0,0,0,0,313,420,527,740,1167,2234]
[null,null,null,null,null,null,null,null,null,null,null,null,null,null,null,null,null,null,null,null,null,null,null,null,null,null,null,null,null,null,null,null,null,null,null,null,null,null,null,null,null,null,null,null,{"$f":"$A$26&A32&$H$27","v":"Top up Option III61 years  - 65 years1000000"},0,0,0,0,0,0,0,770,992,1023,0,0,0,null,"Super top up Option II61 years  - 65 years1500000",0,0,0,0,0,0,0,484,676,868,1252,2020,3940]
[null,null,null,null,null,null,null,null,null,null,null,null,null,null,null,null,null,null,null,null,null,null,null,null,null,null,null,null,null,null,null,null,null,null,null,null,null,null,null,null,null,null,null,null,{"$f":"$A$26&A33&$H$27","v":"Top up Option IIIAbove 65 years1000000"},0,0,0,0,0,0,0,1228,1628,1685,0,0,0,null,"Super top up Option IIAbove 65 years1500000",0,0,0,0,0,0,0,756,1085,1413,2069,3382,6665]
[null,null,null,null,null,null,null,null,null,null,null,null,null,null,null,null,null,null,null,null,null,null,null,null,null,null,null,null,null,null,null,null,null,null,null,null,null,null,null,null,null,null,null,null,{"$f":"$A$37&A40&$B$38","v":"Super top up Option I91 days - 40 years200000"},0,0,0,0,{"$f":"B40","v":1591},{"$f":"C40","v":1909},2246,2387,2948,3276,0,0,0,null,"Super top up Option II91 days - 40 years2000000",0,0,0,0,0,0,0,145,168,191,236,327,555]
[null,null,null,null,null,null,null,null,null,null,null,null,null,null,null,null,null,null,null,null,null,null,null,null,null,null,null,null,null,null,null,null,null,null,null,null,null,null,null,null,null,null,null,null,{"$f":"$A$37&A41&$B$38","v":"Super top up Option I41 years  - 50 years200000"},0,0,0,0,{"$f":"B41","v":2804},3365,3774,4009,4717,5241,0,0,0,null,"Super top up Option II41 years  - 50 years2000000",0,0,0,0,0,0,0,189,234,278,367,546,991]
[null,null,null,null,null,null,null,null,null,null,null,null,null,null,null,null,null,null,null,null,null,null,null,null,null,null,null,null,null,null,null,null,null,null,null,null,null,null,null,null,null,null,null,null,{"$f":"$A$37&A42&$B$38","v":"Super top up Option I51 years  - 60 years200000"},0,0,0,0,4942,5930,6589,7001,8339,9265,0,0,0,null,"Super top up Option II51 years  - 60 years2000000",0,0,0,0,0,0,0,260,340,420,580,900,1701]
[null,null,null,null,null,null,null,null,null,null,null,null,null,null,null,null,null,null,null,null,null,null,null,null,null,null,null,null,null,null,null,null,null,null,null,null,null,null,null,null,null,null,null,null,{"$f":"$A$37&A43&$B$38","v":"Super top up Option I61 years  - 65 years200000"},0,0,0,0,9958,11950,13657,14510,17604,19560,0,0,0,null,"Super top up Option II61 years  - 65 years2000000",0,0,0,0,0,0,0,388,532,676,964,1540,2980]
[null,null,null,null,null,null,null,null,null,null,null,null,null,null,null,null,null,null,null,null,null,null,null,null,null,null,null,null,null,null,null,null,null,null,null,null,null,null,null,null,null,null,null,null,{"$f":"$A$37&A44&$B$38","v":"Super top up Option IAbove 65 years200000"},0,0,0,0,17370,20845,24319,25839,31755,35284,0,0,0,null,"Super top up Option IIAbove 65 years2000000",0,0,0,0,0,0,0,592,839,1085,1577,2562,5024]
[null,null,null,null,null,null,null,null,null,null,null,null,null,null,null,null,null,null,null,null,null,null,null,null,null,null,null,null,null,null,null,null,null,null,null,null,null,null,null,null,null,null,null,null,{"$f":"$A$37&A40&$H$38","v":"Super top up Option I91 days - 40 years300000"},0,0,0,0,{"$f":"H40","v":1077},{"$f":"I40","v":1322},1512,1771,2621,2903,0,0,0,null,"Super top up Option II91 days - 40 years3000000",0,0,0,0,0,0,0,130,145,161,191,252,403]
[null,null,null,null,null,null,null,null,null,null,null,null,null,null,null,null,null,null,null,null,null,null,null,null,null,null,null,null,null,null,null,null,null,null,null,null,null,null,null,null,null,null,null,null,{"$f":"$A$37&A41&$H$38","v":"Super top up Option I41 years  - 50 years300000"},0,0,0,0,{"$f":"H41","v":1898},2329,2540,2975,4193,4644,0,0,0,null,"Super top up Option II41 years  - 50 years3000000",0,0,0,0,0,0,0,159,189,219,278,397,694]
[null,null,null,null,null,null,null,null,null,null,null,null,null,null,null,null,null,null,null,null,null,null,null,null,null,null,null,null,null,null,null,null,null,null,null,null,null,null,null,null,null,null,null,null,{"$f":"$A$37&A42&$H$38","v":"Super top up Option I51 years  - 60 years300000"},0,0,0,0,3345,4105,4435,5195,7412,8211,0,0,0,null,"Super top up Option II51 years  - 60 years3000000",0,0,0,0,0,0,0,207,260,313,420,634,1167]
[null,null,null,null,null,null,null,null,null,null,null,null,null,null,null,null,null,null,null,null,null,null,null,null,null,null,null,null,null,null,null,null,null,null,null,null,null,null,null,null,null,null,null,null,{"$f":"$A$37&A43&$H$38","v":"Super top up Option I61 years  - 65 years300000"},0,0,0,0,6741,8273,9192,10768,15648,17334,0,0,0,null,"Super top up Option II61 years  - 65 years3000000",0,0,0,0,0,0,0,292,388,484,676,1060,2020]
[null,null,null,null,null,null,null,null,null,null,null,null,null,null,null,null,null,null,null,null,null,null,null,null,null,null,null,null,null,null,null,null,null,null,null,null,null,null,null,null,null,null,null,null,{"$f":"$A$37&A44&$H$38","v":"Super top up Option IAbove 65 years300000"},0,0,0,0,11758,14431,16368,19174,28227,31267,0,0,0,null,"Super top up Option IIAbove 65 years3000000",0,0,0,0,0,0,0,428,592,756,1085,1741,3382]
[null,null,null,null,null,null,null,null,null,null,null,null,null,null,null,null,null,null,null,null,null,null,null,null,null,null,null,null,null,null,null,null,null,null,null,null,null,null,null,null,null,null,null,null,{"$f":"$A$37&A40&$N$38","v":"Super top up Option I91 days - 40 years400000"},0,0,0,0,{"$f":"N40","v":734},{"$f":"O40","v":972},1037,1555,2056,2419,0,0,0,null,"Super top up Option II91 days - 40 years4000000",0,0,0,0,0,0,0,115,123,130,145,176,252]
[null,null,null,null,null,null,null,null,null,null,null,null,null,null,null,null,null,null,null,null,null,null,null,null,null,null,null,null,null,null,null,null,null,null,null,null,null,null,null,null,null,null,null,null,{"$f":"$A$37&A41&$N$38","v":"Super top up Option I41 years  - 50 years400000"},0,0,0,0,{"$f":"N41","v":1294},1633,1548,2313,3002,3870,0,0,0,null,"Super top up Option II41 years  - 50 years4000000",0,0,0,0,0,0,0,130,145,159,189,249,397]
[null,null,null,null,null,null,null,null,null,null,null,null,null,null,null,null,null,null,null,null,null,null,null,null,null,null,null,null,null,null,null,null,null,null,null,null,null,null,null,null,null,null,null,null,{"$f":"$A$37&A42&$N$38","v":"Super top up Option I51 years  - 60 years400000"},0,0,0,0,2281,2851,3041,3849,5170,6842,0,0,0,null,"Super top up Option II51 years  - 60 years4000000",0,0,0,0,0,0,0,153,180,207,260,367,634]
[null,null,null,null,null,null,null,null,null,null,null,null,null,null,null,null,null,null,null,null,null,null,null,null,null,null,null,null,null,null,null,null,null,null,null,null,null,null,null,null,null,null,null,null,{"$f":"$A$37&A43&$N$38","v":"Super top up Option I61 years  - 65 years400000"},0,0,0,0,4596,5909,6828,8864,11497,14445,0,0,0,null,"Super top up Option II61 years  - 65 years4000000",0,0,0,0,0,0,0,196,244,292,388,580,1060]
[null,null,null,null,null,null,null,null,null,null,null,null,null,null,null,null,null,null,null,null,null,null,null,null,null,null,null,null,null,null,null,null,null,null,null,null,null,null,null,null,null,null,null,null,{"$f":"$A$37&A44&$N$38","v":"Super top up Option IAbove 65 years400000"},0,0,0,0,8017,10522,11224,15784,22147,26056,0,0,0,null,"Super top up Option IIAbove 65 years4000000",0,0,0,0,0,0,0,264,346,428,592,921,1741]
[null,null,null,null,null,null,null,null,null,null,null,null,null,null,null,null,null,null,null,null,null,null,null,null,null,null,null,null,null,null,null,null,null,null,null,null,null,null,null,null,null,null,null,null,{"$f":"$A$37&A40&$T$38","v":"Super top up Option I91 days - 40 years500000"},0,0,0,0,{"$f":"T40","v":663},{"$f":"U40","v":824},983,1287,1724,2246,0,0,0]
[null,null,null,null,null,null,null,null,null,null,null,null,null,null,null,null,null,null,null,null,null,null,null,null,null,null,null,null,null,null,null,null,null,null,null,null,null,null,null,null,null,null,null,null,{"$f":"$A$37&A41&$T$38","v":"Super top up Option I41 years  - 50 years500000"},0,0,0,0,{"$f":"T41","v":1168},1297,1468,1682,2273,2798,0,0,0]
[null,null,null,null,null,null,null,null,null,null,null,null,null,null,null,null,null,null,null,null,null,null,null,null,null,null,null,null,null,null,null,null,null,null,null,null,null,null,null,null,null,null,null,null,{"$f":"$A$37&A42&$T$38","v":"Super top up Option I51 years  - 60 years500000"},0,0,0,0,2059,2265,2883,3020,3569,4393,0,0,0]
[null,null,null,null,null,null,null,null,null,null,null,null,null,null,null,null,null,null,null,null,null,null,null,null,null,null,null,null,null,null,null,null,null,null,null,null,null,null,null,null,null,null,null,null,{"$f":"$A$37&A43&$T$38","v":"Super top up Option I61 years  - 65 years500000"},0,0,0,0,4149,5086,5975,7498,7706,9294,0,0,0]
[null,null,null,null,null,null,null,null,null,null,null,null,null,null,null,null,null,null,null,null,null,null,null,null,null,null,null,null,null,null,null,null,null,null,null,null,null,null,null,null,null,null,null,null,{"$f":"$A$37&A44&$T$38","v":"Super top up Option IAbove 65 years500000"},0,0,0,0,7238,8360,10639,13933,15506,19085,0,0,0]
[null,null,null,null,null,null,null,null,null,null,null,null,null,null,null,null,null,null,null,null,null,null,null,null,null,null,null,null,null,null,null,null,null,null,null,null,null,null,null,null,null,null,null,null,{"$f":"$A$37&A40&$Z$38","v":"Super top up Option I91 days - 40 years750000"},0,0,0,0,{"$f":"Z40","v":460},{"$f":"AA40","v":581},743,899,1125,1162,0,0,0]
[null,null,null,null,null,null,null,null,null,null,null,null,null,null,null,null,null,null,null,null,null,null,null,null,null,null,null,null,null,null,null,null,null,null,null,null,null,null,null,null,null,null,null,null,{"$f":"$A$37&A41&$Z$38","v":"Super top up Option I41 years  - 50 years750000"},0,0,0,0,{"$f":"Z41","v":597},801,1072,1283,1644,1704,0,0,0]
[null,null,null,null,null,null,null,null,null,null,null,null,null,null,null,null,null,null,null,null,null,null,null,null,null,null,null,null,null,null,null,null,null,null,null,null,null,null,null,null,null,null,null,null,{"$f":"$A$37&A42&$Z$38","v":"Super top up Option I51 years  - 60 years750000"},0,0,0,0,850,1205,1679,2069,2708,2815,0,0,0]
[null,null,null,null,null,null,null,null,null,null,null,null,null,null,null,null,null,null,null,null,null,null,null,null,null,null,null,null,null,null,null,null,null,null,null,null,null,null,null,null,null,null,null,null,{"$f":"$A$37&A43&$Z$38","v":"Super top up Option I61 years  - 65 years750000"},0,0,0,0,1485,2221,3202,4081,5430,5655,0,0,0]
[null,null,null,null,null,null,null,null,null,null,null,null,null,null,null,null,null,null,null,null,null,null,null,null,null,null,null,null,null,null,null,null,null,null,null,null,null,null,null,null,null,null,null,null,{"$f":"$A$37&A44&$Z$38","v":"Super top up Option IAbove 65 years750000"},0,0,0,0,2442,3753,5500,7154,9587,9993,0,0,0]
[null,null,null,null,null,null,null,null,null,null,null,null,null,null,null,null,null,null,null,null,null,null,null,null,null,null,null,null,null,null,null,null,null,null,null,null,null,null,null,null,null,null,null,null,{"$f":"$A$37&A40&$AF$38","v":"Super top up Option I91 days - 40 years1000000"},0,0,0,0,{"$f":"AF40","v":303},{"$f":"AG40","v":353},390,428,494,503,0,0,0]
[null,null,null,null,null,null,null,null,null,null,null,null,null,null,null,null,null,null,null,null,null,null,null,null,null,null,null,null,null,null,null,null,null,null,null,null,null,null,null,null,null,null,null,null,{"$f":"$A$37&A41&$AF$38","v":"Super top up Option I41 years  - 50 years1000000"},0,0,0,0,{"$f":"AF41","v":333},418,469,530,635,650,0,0,0]
[null,null,null,null,null,null,null,null,null,null,null,null,null,null,null,null,null,null,null,null,null,null,null,null,null,null,null,null,null,null,null,null,null,null,null,null,null,null,null,null,null,null,null,null,{"$f":"$A$37&A42&$AF$38","v":"Super top up Option I51 years  - 60 years1000000"},0,0,0,0,389,537,631,738,924,951,0,0,0]
[null,null,null,null,null,null,null,null,null,null,null,null,null,null,null,null,null,null,null,null,null,null,null,null,null,null,null,null,null,null,null,null,null,null,null,null,null,null,null,null,null,null,null,null,{"$f":"$A$37&A43&$AF$38","v":"Super top up Option I61 years  - 65 years1000000"},0,0,0,0,528,835,1045,1270,1664,1720,0,0,0]
[null,null,null,null,null,null,null,null,null,null,null,null,null,null,null,null,null,null,null,null,null,null,null,null,null,null,null,null,null,null,null,null,null,null,null,null,null,null,null,null,null,null,null,null,{"$f":"$A$37&A44&$AF$38","v":"Super top up Option IAbove 65 years1000000"},0,0,0,0,739,1285,1678,2084,2793,2895,0,0,0]
[null,null,null,null,null,null,null,null,null,null,null,null,null,null,null,null,null,null,null,null,null,null,null,null,null,null,null,null,null,null,null,null,null,null,null,null,null,null,null,null,null,null,null,null,{"$f":"$A$48&A51&$B$49","v":"Super top up Option II91 days - 40 years1000000"},0,0,0,0,0,0,0,{"$f":"B51","v":429},{"$f":"C51","v":496},505,534,600,752]
[null,null,null,null,null,null,null,null,null,null,null,null,null,null,null,null,null,null,null,null,null,null,null,null,null,null,null,null,null,null,null,null,null,null,null,null,null,null,null,null,null,null,null,null,{"$f":"$A$48&A52&$B$49","v":"Super top up Option II41 years  - 50 years1000000"},0,0,0,0,0,0,0,{"$f":"B52","v":532},638,654,699,806,1049]
[null,null,null,null,null,null,null,null,null,null,null,null,null,null,null,null,null,null,null,null,null,null,null,null,null,null,null,null,null,null,null,null,null,null,null,null,null,null,null,null,null,null,null,null,{"$f":"$A$48&A53&$B$49","v":"Super top up Option II51 years  - 60 years1000000"},0,0,0,0,0,0,0,742,930,958,1038,1226,1656]
[null,null,null,null,null,null,null,null,null,null,null,null,null,null,null,null,null,null,null,null,null,null,null,null,null,null,null,null,null,null,null,null,null,null,null,null,null,null,null,null,null,null,null,null,{"$f":"$A$48&A54&$B$49","v":"Super top up Option II61 years  - 65 years1000000"},0,0,0,0,0,0,0,1279,1676,1733,1903,2300,3208]
[null,null,null,null,null,null,null,null,null,null,null,null,null,null,null,null,null,null,null,null,null,null,null,null,null,null,null,null,null,null,null,null,null,null,null,null,null,null,null,null,null,null,null,null,{"$f":"$A$48&A55&$B$49","v":"Super top up Option IIAbove 65 years1000000"},0,0,0,0,0,0,0,2100,2816,2918,3226,3942,5579]
[null,null,null,null,null,null,null,null,null,null,null,null,null,null,null,null,null,null,null,null,null,null,null,null,null,null,null,null,null,null,null,null,null,null,null,null,null,null,null,null,null,null,null,null,{"$f":"$A$48&A51&$H$49","v":"Super top up Option II91 days - 40 years1500000"},0,0,0,0,0,0,0,{"$f":"H51","v":418},{"$f":"I51","v":456},471,479,532,654]
[null,null,null,null,null,null,null,null,null,null,null,null,null,null,null,null,null,null,null,null,null,null,null,null,null,null,null,null,null,null,null,null,null,null,null,null,null,null,null,null,null,null,null,null,{"$f":"$A$48&A52&$H$49","v":"Super top up Option II41 years  - 50 years1500000"},0,0,0,0,0,0,0,{"$f":"H52","v":514},575,599,611,696,891]
[null,null,null,null,null,null,null,null,null,null,null,null,null,null,null,null,null,null,null,null,null,null,null,null,null,null,null,null,null,null,null,null,null,null,null,null,null,null,null,null,null,null,null,null,{"$f":"$A$48&A53&$H$49","v":"Super top up Option II51 years  - 60 years1500000"},0,0,0,0,0,0,0,710,817,860,882,1032,1376]
[null,null,null,null,null,null,null,null,null,null,null,null,null,null,null,null,null,null,null,null,null,null,null,null,null,null,null,null,null,null,null,null,null,null,null,null,null,null,null,null,null,null,null,null,{"$f":"$A$48&A54&$H$49","v":"Super top up Option II61 years  - 65 years1500000"},0,0,0,0,0,0,0,1211,1438,1529,1574,1892,2618]
[null,null,null,null,null,null,null,null,null,null,null,null,null,null,null,null,null,null,null,null,null,null,null,null,null,null,null,null,null,null,null,null,null,null,null,null,null,null,null,null,null,null,null,null,{"$f":"$A$48&A55&$H$49","v":"Super top up Option IIAbove 65 years1500000"},0,0,0,0,0,0,0,1977,2387,2550,2632,3205,4515]
[null,null,null,null,null,null,null,null,null,null,null,null,null,null,null,null,null,null,null,null,null,null,null,null,null,null,null,null,null,null,null,null,null,null,null,null,null,null,null,null,null,null,null,null,{"$f":"$A$48&A51&$N$49","v":"Super top up Option II91 days - 40 years2000000"},0,0,0,0,0,0,0,{"$f":"N51","v":372},{"$f":"O51","v":452},464,475,509,623]
[null,null,null,null,null,null,null,null,null,null,null,null,null,null,null,null,null,null,null,null,null,null,null,null,null,null,null,null,null,null,null,null,null,null,null,null,null,null,null,null,null,null,null,null,{"$f":"$A$48&A52&$N$49","v":"Super top up Option II41 years  - 50 years2000000"},0,0,0,0,0,0,0,{"$f":"N52","v":441},568,587,605,660,842]
[null,null,null,null,null,null,null,null,null,null,null,null,null,null,null,null,null,null,null,null,null,null,null,null,null,null,null,null,null,null,null,null,null,null,null,null,null,null,null,null,null,null,null,null,{"$f":"$A$48&A53&$N$49","v":"Super top up Option II51 years  - 60 years2000000"},0,0,0,0,0,0,0,581,807,839,871,968,1290]
[null,null,null,null,null,null,null,null,null,null,null,null,null,null,null,null,null,null,null,null,null,null,null,null,null,null,null,null,null,null,null,null,null,null,null,null,null,null,null,null,null,null,null,null,{"$f":"$A$48&A54&$N$49","v":"Super top up Option II61 years  - 65 years2000000"},0,0,0,0,0,0,0,939,1416,1484,1552,1756,2436]
[null,null,null,null,null,null,null,null,null,null,null,null,null,null,null,null,null,null,null,null,null,null,null,null,null,null,null,null,null,null,null,null,null,null,null,null,null,null,null,null,null,null,null,null,{"$f":"$A$48&A55&$N$49","v":"Super top up Option IIAbove 65 years2000000"},0,0,0,0,0,0,0,1486,2346,2468,2591,2959,4187]
[null,null,null,null,null,null,null,null,null,null,null,null,null,null,null,null,null,null,null,null,null,null,null,null,null,null,null,null,null,null,null,null,null,null,null,null,null,null,null,null,null,null,null,null,{"$f":"$A$48&A51&$T$49","v":"Super top up Option II91 days - 40 years3000000"},0,0,0,0,0,0,0,{"$f":"T51","v":362},{"$f":"U51","v":438},456,471,486,562]
[null,null,null,null,null,null,null,null,null,null,null,null,null,null,null,null,null,null,null,null,null,null,null,null,null,null,null,null,null,null,null,null,null,null,null,null,null,null,null,null,null,null,null,null,{"$f":"$A$48&A52&$T$49","v":"Super top up Option II41 years  - 50 years3000000"},0,0,0,0,0,0,0,{"$f":"T52","v":429},550,575,599,623,745]
[null,null,null,null,null,null,null,null,null,null,null,null,null,null,null,null,null,null,null,null,null,null,null,null,null,null,null,null,null,null,null,null,null,null,null,null,null,null,null,null,null,null,null,null,{"$f":"$A$48&A53&$T$49","v":"Super top up Option II51 years  - 60 years3000000"},0,0,0,0,0,0,0,559,774,817,860,903,1118]
[null,null,null,null,null,null,null,null,null,null,null,null,null,null,null,null,null,null,null,null,null,null,null,null,null,null,null,null,null,null,null,null,null,null,null,null,null,null,null,null,null,null,null,null,{"$f":"$A$48&A54&$T$49","v":"Super top up Option II61 years  - 65 years3000000"},0,0,0,0,0,0,0,894,1347,1438,1529,1620,2073]
[null,null,null,null,null,null,null,null,null,null,null,null,null,null,null,null,null,null,null,null,null,null,null,null,null,null,null,null,null,null,null,null,null,null,null,null,null,null,null,null,null,null,null,null,{"$f":"$A$48&A55&$T$49","v":"Super top up Option IIAbove 65 years3000000"},0,0,0,0,0,0,0,1404,2223,2387,2550,2714,3532]
[null,null,null,null,null,null,null,null,null,null,null,null,null,null,null,null,null,null,null,null,null,null,null,null,null,null,null,null,null,null,null,null,null,null,null,null,null,null,null,null,null,null,null,null,{"$f":"$A$48&A51&$Z$49","v":"Super top up Option II91 days - 40 years4000000"},0,0,0,0,0,0,0,{"$f":"Z51","v":271},{"$f":"AA51","v":305},317,341,362,448]
[null,null,null,null,null,null,null,null,null,null,null,null,null,null,null,null,null,null,null,null,null,null,null,null,null,null,null,null,null,null,null,null,null,null,null,null,null,null,null,null,null,null,null,null,{"$f":"$A$48&A52&$Z$49","v":"Super top up Option II41 years  - 50 years4000000"},0,0,0,0,0,0,0,{"$f":"Z52","v":296},354,390,417,429,562]
[null,null,null,null,null,null,null,null,null,null,null,null,null,null,null,null,null,null,null,null,null,null,null,null,null,null,null,null,null,null,null,null,null,null,null,null,null,null,null,null,null,null,null,null,{"$f":"$A$48&A53&$Z$49","v":"Super top up Option II51 years  - 60 years4000000"},0,0,0,0,0,0,0,360,495,516,538,559,796]
[null,null,null,null,null,null,null,null,null,null,null,null,null,null,null,null,null,null,null,null,null,null,null,null,null,null,null,null,null,null,null,null,null,null,null,null,null,null,null,null,null,null,null,null,{"$f":"$A$48&A54&$Z$49","v":"Super top up Option II61 years  - 65 years4000000"},0,0,0,0,0,0,0,531,758,803,848,894,1393]
[null,null,null,null,null,null,null,null,null,null,null,null,null,null,null,null,null,null,null,null,null,null,null,null,null,null,null,null,null,null,null,null,null,null,null,null,null,null,null,null,null,null,null,null,{"$f":"$A$48&A55&$Z$49","v":"Super top up Option IIAbove 65 years4000000"},0,0,0,0,0,0,0,750,1159,1241,1323,1404,2305]